fUST/lending_fUST_20241016
["ID","MTS","AMOUNT","RATE_DAILY","PERIOD"]
[340304776,1729011040562,-1500.0,0.00027694,2]
[340304777,1729011040571,-166.666668,0.0002781,2]
[340304778,1729011040581,-1500.0,0.00027918,2]
[340304779,1729011040590,-166.666668,0.00027938,2]
[340304780,1729011040611,-2500.0,0.00027945,7]
[340304781,1729011040621,-1500.0,0.00028,2]
[340304782,1729011040631,-150.0,0.0002801,5]
[340304783,1729011040640,-166.666668,0.00028065,2]
[340304784,1729011040650,-1500.0,0.00028141,2]
[340304785,1729011040660,-166.666668,0.00028193,2]
[340304786,1729011040669,-489.3,0.00028298,2]
[340304787,1729011040679,-166.666668,0.0002832,2]
[340304788,1729011040689,-1500.0,0.00028365,2]
[340304789,1729011040699,-185.133605,0.00028392,2]
[340304790,1729011040709,-3750.0,0.00028493,7]
[340304791,1729011040719,-1500.0,0.00028588,2]
[340304792,1729011040730,-1500.0,0.00028766,2]
[340304793,1729011040743,-420.0,0.00028801,2]
[340304794,1729011040753,-1500.0,0.00028812,2]
[340304795,1729011040762,-1500.0,0.00029035,2]
[340304796,1729011040772,-5000.0,0.00029041,7]
[340304797,1729011040782,-500.0,0.00029041,2]
[340304798,1729011040791,-150.0,0.00029041,2]
[340304799,1729011040801,-150.0,0.00029041,2]
[340304800,1729011040810,-150.0,0.00029041,2]
[340304801,1729011040820,-150.0,0.00029041,2]
[340304802,1729011040830,-150.0,0.00029041,2]
[340304803,1729011040840,-500.0,0.00029041,2]
[340304804,1729011040849,-328.17457386,0.00029259,2]
[340304805,1729011040862,-1171.82542614,0.00029259,2]
[340304806,1729011040872,-420.0,0.00029293,2]
[340304807,1729011040882,-150.0,0.0002934,120]
[340304808,1729011040891,-166.666666,0.00029378,2]
[340304809,1729011040900,-150.0,0.0002948,15]
[340304810,1729011040910,-1500.0,0.00029482,2]
[340304811,1729011040919,-382.680797,0.000295,2]
[340304812,1729011040938,-6250.0,0.00029589,7]
[340304813,1729011040950,-164.392498,0.00029612,2]
[340304814,1729011040963,-489.3,0.00029672,3]
[340304815,1729011040975,-1500.0,0.00029706,2]
[340304816,1729011040987,-1500.0,0.00029929,2]
[340304817,1729011041002,-159.6912081,0.0003,2]
[340304818,1729011041017,-123.3087919,0.0003,2]
[340304819,1729011041029,-1071.45922437,0.0003,10]
[340304820,1729011041039,-167.41422575,0.00030136,7]
[340304846,1729011043516,-1325.81357195,0.00030136,7]
[340304847,1729011043528,-2256.7722023,0.00030136,7]
[340304848,1729011043540,-1276.63250366,0.00030136,3]
[340304849,1729011043554,-123.65604536,0.00030136,3]
[340304850,1729011043565,-1500.0,0.00030153,2]
[340304851,1729011043575,-131.23765704,0.00030214,4]
[340304852,1729011043593,-2284.08925962,0.00030214,4]
[340304869,1729011046299,-12886.42269404,0.00030214,4]
[340304871,1729011046310,-19119.8374607,0.00030214,4]
[340304872,1729011046320,-8566.76638822,0.00030224,2]
[340304873,1729011046330,-1500.0,0.00030376,2]
[340304874,1729011046340,-959.59962882,0.00030411,2]
[340304875,1729011046352,-150.0,0.00030411,2]
[340304876,1729011046362,-200.7034878,0.00030411,2]
[340304877,1729011046374,-250.81907175,0.00030411,2]
[340304878,1729011046385,-150.0,0.00030411,2]
[340304879,1729011046397,-150.0,0.00030411,2]
[340304880,1729011046408,-515.37644066,0.00030411,2]
[340304881,1729011046420,-1500.0,0.000306,2]
[340304882,1729011046431,-1500.0,0.00030824,2]
[340304883,1729011046443,-157.0,0.0003095,14]
[340304884,1729011046454,-489.3,0.00031046,3]
[340304885,1729011046466,-1500.0,0.00031047,2]
[340304886,1729011046480,-500.0,0.00031087,5]
[340304887,1729011046491,-509.21153178,0.00031087,5]
[340304888,1729011046504,-500.0,0.00031087,5]
[340304889,1729011046515,-150.0,0.0003114,2]
[340304890,1729011046525,-587.0,0.00031149,2]
[340304891,1729011046536,-500.0,0.0003115,5]
[340304892,1729011046547,-6634.2,0.00031195,2]
[340304893,1729011046557,-1500.0,0.00031271,2]
[340304894,1729011046568,-1500.0,0.00031494,2]
[340304895,1729011046579,-1500.0,0.00031718,2]
[340304896,1729011046589,-150.0,0.00031781,2]
[340304897,1729011046601,-204.70704119,0.00031781,2]
[340304898,1729011046612,-150.0,0.00031781,2]
[340304899,1729011046622,-150.112233,0.000318,8]
[340304900,1729011046633,-1500.0,0.00031941,2]
[340304901,1729011046643,-150.0,0.0003209,120]
[340304902,1729011046654,-1500.0,0.00032165,2]
[340304903,1729011046663,-167.0,0.00032222,2]
[340304904,1729011046674,-174.894,0.00032242,31]
[340304905,1729011046685,-1500.0,0.00032388,2]
[340304906,1729011046696,-489.3,0.00032421,4]
[340304907,1729011046706,-378.00602371,0.00032457,5]
[340304908,1729011046716,-500.0,0.00032457,5]
[340304909,1729011046726,-437.25530833,0.00032612,2]
[340304910,1729011046740,-1062.74469167,0.00032612,2]
[340304911,1729011046756,-1500.0,0.00032835,2]
[340304912,1729011046767,-161.254,0.00032856,2]
[340304913,1729011046778,-527.0,0.00032856,2]
[340304914,1729011046788,-1806.0,0.00032856,2]
[340304915,1729011046799,-1015.00688503,0.00032856,2]
[340304916,1729011305027,4312.29,0.00027,60]
[340304917,1729011604859,150.0,0.00027,60]
[340304974,1729011819807,256.185844,0.00024,2]
[340304975,1729011828129,5000.0,0.00024,2]
[340304976,1729011836121,5000.0,0.00024,2]
[340304977,1729011844949,1606.22917356,0.00024,2]
[340304978,1729011852993,5000.0,0.00024,2]
[340304979,1729011861268,5000.0,0.00024,2]
[340304980,1729011869390,4697.60819836,0.00024,2]
[340304981,1729011877184,1545.35850781,0.00024,2]
[340305031,1729012238920,-3000.0,0.00025,2]
[340305032,1729012238932,-3555.337698,0.0002501,2]
[340305033,1729012238944,-893.5,0.00025611,2]
[340305034,1729012238954,-150.0,0.0002622,2]
[340305035,1729012238965,-465.29153907,0.00026364,2]
[340305036,1729012238975,-300.0,0.00026574,2]
[340305037,1729012238985,-300.0,0.00026574,2]
[340305038,1729012238995,-282.34410742,0.00026574,15]
[340305039,1729012239009,-660.0,0.00026657,2]
[340305040,1729012239019,-1500.0,0.000268,2]
[340305041,1729012239037,-647.19963897,0.00026836,2]
[340305042,1729012239049,-3545.36022271,0.00026836,2]
[340305079,1729012503163,316.51628386,0.00019,11]
[340305082,1729012754350,10000.0,0.00020201,120]
[340305083,1729012764628,10000.0,0.00020201,120]
[340305084,1729012786358,991.0,0.00020201,120]
[340305085,1729013154766,29999.99,0.00027,60]
[340305088,1729013274083,241.23519014,0.00023,2]
[340305089,1729013318287,475027.21304985,0.00021,60]
[340305090,1729013318310,47171.37580409,0.00021,60]
[340305091,1729013318338,77300.4572653,0.00021,60]
[340305096,1729013324396,500.0,0.00024,2]
[340305097,1729013325048,159.6171543,0.00022,10]
[340305098,1729013325114,288.70629625,0.0002101,2]
[340305139,1729013434869,-250.0,0.00024175,2]
[340305140,1729013434879,-250.0,0.00024241,2]
[340305141,1729013434889,-250.0,0.00024307,2]
[340305142,1729013434899,-16.41726329,0.00024374,2]
[340305143,1729013434937,-233.58273671,0.00024374,2]
[340305144,1729013434947,-250.0,0.0002444,2]
[340305145,1729013434957,-250.0,0.00024506,2]
[340305146,1729013434967,-250.0,0.00024573,2]
[340305147,1729013434977,-250.0,0.00024639,2]
[340305148,1729013434986,-250.0,0.00024705,2]
[340305149,1729013434996,-250.0,0.00024771,2]
[340305150,1729013435005,-250.0,0.00024838,2]
[340305151,1729013435015,-250.0,0.00024904,2]
[340305152,1729013435024,-250.0,0.0002497,2]
[340305153,1729013435033,-300.0,0.00024989,2]
[340305154,1729013435043,-300.0,0.00024989,2]
[340305155,1729013435052,-308.56766914,0.00024989,10]
[340305156,1729013435243,-554.94415559,0.0002499,2]
[340305157,1729013435256,-552.86,0.0002499,3]
[340305158,1729013435266,-20112.37,0.0002499,10]
[340305159,1729013435276,-421.74670877,0.00024999,2]
[340305160,1729013435287,-543.08179156,0.00024999,2]
[340305161,1729013435298,-258.71884868,0.00024999,2]
[340305162,1729013435307,-157.30757621,0.00024999,2]
[340305163,1729013435317,-222.27098177,0.00024999,2]
[340305164,1729013435327,-235.24217152,0.00024999,2]
[340305165,1729013435337,-297.96898733,0.00024999,2]
[340305166,1729013435346,-500.0,0.00024999,2]
[340305167,1729013435357,-500.0,0.00024999,2]
[340305168,1729013435366,-500.0,0.00024999,2]
[340305169,1729013435378,-500.0,0.00024999,2]
[340305170,1729013435388,-500.0,0.00024999,2]
[340305171,1729013435398,-500.0,0.00024999,2]
[340305172,1729013435407,-500.0,0.00024999,2]
[340305173,1729013435423,-500.0,0.00024999,2]
[340305174,1729013435432,-500.0,0.00024999,2]
[340305175,1729013435442,-500.0,0.00024999,2]
[340305176,1729013435451,-500.0,0.00024999,2]
[340305177,1729013435461,-500.0,0.00024999,2]
[340305178,1729013435471,-500.0,0.00024999,2]
[340305179,1729013435480,-500.0,0.00024999,2]
[340305180,1729013435491,-576.51003174,0.00024999,2]
[340305181,1729013435500,-500.0,0.00024999,2]
[340305182,1729013435510,-500.0,0.00024999,2]
[340305183,1729013435520,-500.0,0.00024999,2]
[340305184,1729013435530,-500.0,0.00024999,2]
[340305185,1729013435540,-500.0,0.00024999,2]
[340305186,1729013435549,-500.0,0.00024999,2]
[340305187,1729013435560,-500.0,0.00024999,2]
[340305188,1729013435570,-500.0,0.00024999,2]
[340305189,1729013435581,-500.0,0.00024999,2]
[340305190,1729013435593,-500.0,0.00024999,2]
[340305191,1729013435604,-500.0,0.00024999,2]
[340305192,1729013435614,-500.0,0.00024999,2]
[340305193,1729013435623,-500.0,0.00024999,2]
[340305194,1729013435633,-500.0,0.00024999,2]
[340305195,1729013435643,-500.0,0.00024999,2]
[340305196,1729013435654,-500.0,0.00024999,2]
[340305197,1729013435667,-500.0,0.00024999,2]
[340305198,1729013435678,-500.0,0.00024999,2]
[340305199,1729013435688,-500.0,0.00024999,2]
[340305200,1729013435698,-500.0,0.00024999,2]
[340305201,1729013435708,-371.75530979,0.00024999,2]
[340305202,1729013435718,-5617.77584,0.00025,2]
[340305203,1729013435728,-349660.29719051,0.00025,2]
[340305209,1729013437934,-26345.17545255,0.0002499,10]
[340305211,1729013438108,-2351.71418294,0.0002499,10]
[340305236,1729013442788,-5293.07036451,0.0002499,10]
[340305237,1729013442798,-13008.37290083,0.00025,2]
[340305256,1729013445825,-485.75058998,0.00024999,2]
[340305257,1729013445835,-181.10319407,0.00024999,2]
[340305258,1729013445844,-155.58968723,0.00024999,2]
[340305259,1729013445854,-286.77308329,0.00025,2]
[340305260,1729013445866,-417.31201474,0.00025,2]
[340305262,1729013830585,166.666666,0.00023565,2]
[340305264,1729014010888,471.35675188,0.00023414,2]
[340305265,1729014071750,164.928839,0.00023498,2]
[340305280,1729014184807,8494.3972907,0.00023995,2]
[340305281,1729014246708,262.819784,0.00023665,2]
[340305283,1729014361109,166.666666,0.00023283,2]
[340305284,1729014479797,24900.0,0.000237,2]
[340305285,1729014528613,250.0,0.00023857,2]
[340305286,1729014528852,250.0,0.00023923,2]
[340305287,1729014529356,250.0,0.00023988,2]
[340305288,1729014543662,3000.0,0.00023562,2]
[340305328,1729014631949,-250.0,0.00024053,2]
[340305329,1729014631959,-166.666666,0.00024076,2]
[340305330,1729014631969,-250.0,0.00024119,2]
[340305331,1729014631979,-150.0,0.00024125,2]
[340305332,1729014631990,-250.0,0.00024184,2]
[340305333,1729014631999,-250.0,0.0002425,2]
[340305334,1729014632008,-250.0,0.00024315,2]
[340305335,1729014632018,-262.819784,0.0002435,2]
[340305336,1729014632027,-250.0,0.00024381,2]
[340305337,1729014632036,-250.0,0.00024446,2]
[340305338,1729014632047,-250.0,0.00024511,2]
[340305339,1729014632056,-250.0,0.00024577,2]
[340305341,1729014632066,-150.80018939,0.00024577,2]
[340305342,1729014632076,-465.31783759,0.00024585,2]
[340305343,1729014632086,-250.0,0.00024642,2]
[340305344,1729014632095,-380.0,0.00024658,2]
[340305345,1729014632104,-435.10164086,0.00024698,2]
[340305346,1729014632113,-435.10164086,0.00024703,2]
[340305347,1729014632123,-250.0,0.00024708,2]
[340305348,1729014632132,-435.10164086,0.00024708,2]
[340305349,1729014632142,-2597.08162281,0.00024709,2]
[340305350,1729014632151,-300.0,0.00024716,2]
[340305351,1729014632170,-300.0,0.00024716,2]
[340305352,1729014632180,-282.34410742,0.00024716,10]
[340305353,1729014632189,-9349.2900405,0.00024717,2]
[340305354,1729014632198,-174.24697246,0.00024719,2]
[340305355,1729014632207,-174.24697242,0.00024724,2]
[340305356,1729014632219,-174.24697242,0.00024729,2]
[340305357,1729014632230,-174.24697242,0.00024734,2]
[340305358,1729014632239,-174.24697242,0.00024739,2]
[340305359,1729014632249,-5017.5039094,0.0002475,2]
[340305360,1729014632258,-250.0,0.00024773,2]
[340305361,1729014632268,-150.0,0.00024791,2]
[340305362,1729014632277,-924.74908552,0.00024798,2]
[340305363,1729014632286,-150.112233,0.000248,2]
[340305364,1729014632296,-150.112233,0.000248,2]
[340305365,1729014632305,-641.17,0.00024807,3]
[340305366,1729014632315,-625.99738175,0.00024808,2]
[340305367,1729014632325,-201.34413929,0.00024808,2]
[340305368,1729014632334,-468.8555683,0.00024808,2]
[340305369,1729014632344,-172.97912287,0.00024808,2]
[340305370,1729014632356,-1000.0,0.00024808,2]
[340305371,1729014632368,-276.902593,0.00024808,7]
[340305372,1729014632379,-151.0,0.00024808,7]
[340305373,1729014632391,-158.98786267,0.00024808,2]
[340305374,1729014632402,-500.0,0.00024808,2]
[340305375,1729014632413,-150.0,0.00024808,2]
[340305376,1729014632423,-124479.42584147,0.00024809,3]
[340305388,1729014638198,-500.0,0.00024797,2]
[340305389,1729014638208,-500.0,0.00024797,2]
[340305390,1729014638218,-500.0,0.00024797,2]
[340305391,1729014638228,-500.0,0.00024797,2]
[340305392,1729014638239,-500.0,0.00024797,2]
[340305393,1729014638249,-500.0,0.00024797,2]
[340305394,1729014638261,-500.0,0.00024797,2]
[340305395,1729014638271,-500.0,0.00024797,2]
[340305396,1729014638281,-500.0,0.00024797,2]
[340305397,1729014638292,-500.0,0.00024797,2]
[340305398,1729014638302,-154.61534734,0.00024797,2]
[340305399,1729014638311,-500.0,0.00024797,2]
[340305400,1729014638322,-500.0,0.00024797,2]
[340305401,1729014638331,-416.48063654,0.00024797,2]
[340305402,1729014638341,-500.0,0.00024797,2]
[340305403,1729014638351,-500.0,0.00024797,2]
[340305404,1729014638360,-500.0,0.00024797,2]
[340305405,1729014638370,-500.0,0.00024797,2]
[340305406,1729014638380,-500.0,0.00024797,2]
[340305407,1729014638388,-500.0,0.00024797,2]
[340305408,1729014638398,-500.0,0.00024797,2]
[340305409,1729014638408,-500.0,0.00024797,2]
[340305410,1729014638417,-500.0,0.00024797,2]
[340305411,1729014638427,-500.0,0.00024797,2]
[340305412,1729014638436,-500.0,0.00024797,2]
[340305413,1729014638446,-500.0,0.00024797,2]
[340305414,1729014638455,-500.0,0.00024797,2]
[340305415,1729014638466,-500.0,0.00024797,2]
[340305416,1729014638476,-500.0,0.00024797,2]
[340305417,1729014638486,-500.0,0.00024797,2]
[340305418,1729014638496,-442.688615,0.00024797,2]
[340305419,1729014638505,-500.0,0.00024797,2]
[340305420,1729014638514,-500.0,0.00024797,2]
[340305421,1729014638525,-500.0,0.00024797,2]
[340305422,1729014638534,-150.0,0.00024808,2]
[340305423,1729014638544,-171.30326001,0.00024808,2]
[340305424,1729014638557,-500.0,0.00024808,2]
[340305425,1729014638566,-1623.23411055,0.00024809,3]
[340305426,1729014638614,-653.15483093,0.00024809,3]
[340305427,1729014638628,-6728.66177473,0.00024809,3]
[340305428,1729014638640,-232481.41186032,0.00024809,3]
[340305429,1729014638649,-142735.0459721,0.00024809,3]
[340305430,1729014638667,-7088.90515642,0.00024809,3]
[340305437,1729014640033,-150.0,0.00024808,2]
[340305438,1729014640043,-131900.98653048,0.00024809,3]
[340305439,1729014640053,-150.0,0.00024817,2]
[340305440,1729014640063,-150.0,0.00024817,2]
[340305441,1729014640073,-150.75088382,0.00024818,2]
[340305442,1729014640082,-150.77865209,0.00024818,2]
[340305443,1729014640091,-151.0,0.00024829,7]
[340305444,1729014640101,-277.861497,0.00024829,7]
[340305445,1729014640111,-366.802869,0.00024829,7]
[340305446,1729014640121,-366.802869,0.00024829,7]
[340305447,1729014640131,-151.0,0.00024829,7]
[340305448,1729014640140,-151.0,0.00024829,7]
[340305449,1729014640150,-161.05263,0.00024829,7]
[340305450,1729014640159,-161.05263,0.00024829,7]
[340305451,1729014640171,-222.0098,0.00024829,7]
[340305452,1729014640180,-151.0,0.00024829,2]
[340305453,1729014640190,-151.0,0.00024829,7]
[340305454,1729014640200,-151.0,0.00024829,7]
[340305455,1729014640209,-151.0,0.00024829,7]
[340305456,1729014640219,-151.0,0.00024829,7]
[340305457,1729014640229,-151.0,0.00024829,7]
[340305458,1729014640238,-595.37762,0.00024829,7]
[340305459,1729014640247,-3135.050326,0.00024829,7]
[340305460,1729014640257,-151.0,0.00024829,7]
[340305461,1729014640267,-3135.050326,0.00024829,7]
[340305462,1729014640276,-151.0,0.00024829,7]
[340305463,1729014640286,-151.0,0.00024829,7]
[340305464,1729014640295,-2340.579933,0.00024829,7]
[340305465,1729014640305,-2340.579933,0.00024829,7]
[340305466,1729014640315,-277.861497,0.00024829,7]
[340305467,1729014640325,-151.0,0.00024829,7]
[340305468,1729014640334,-151.0,0.00024829,7]
[340305469,1729014640344,-153.275052,0.00024829,7]
[340305470,1729014640353,-151.0,0.00024829,7]
[340305471,1729014640363,-250.0,0.00024839,2]
[340305472,1729014640372,-97087.21924981,0.00024839,2]
[340305501,1729014769572,262.819784,0.00023655,2]
[340305502,1729014862327,166.666666,0.00023221,2]
[340305503,1729014945322,7893.4590404,0.00023943,2]
[340305504,1729014977947,24900.0,0.00023688,2]
[340305506,1729015038938,1504.1186484,0.00023647,2]
[340305508,1729015084144,212.65,0.00023871,2]
[340305509,1729015084600,212.65,0.00023937,2]
[340305512,1729015301909,224.958978,0.0002352,2]
[340305515,1729015377571,166.666666,0.00023145,2]
[340305516,1729015447925,151.0,0.0002371,2]
[340305517,1729015466375,7893.4590405,0.0002395,2]
[340305519,1729015512675,24900.0,0.00023513,2]
[340305524,1729015629737,191.385,0.00023841,2]
[340305525,1729015630045,191.385,0.00023906,2]
[340305526,1729015630297,191.385,0.00023971,2]
[340305534,1729015760450,1000.0,0.00024,12]
[340305592,1729015832594,-191.385,0.00024037,2]
[340305593,1729015832604,-191.385,0.00024102,2]
[340305594,1729015832614,-191.385,0.00024168,2]
[340305595,1729015832623,-191.385,0.00024233,2]
[340305596,1729015832633,-191.385,0.00024298,2]
[340305597,1729015832643,-191.385,0.00024364,2]
[340305598,1729015832652,-191.385,0.00024429,2]
[340305599,1729015832662,-124.52702607,0.00024495,2]
[340305610,1729015838326,-66.85797393,0.00024495,2]
[340305611,1729015838336,-7893.45904,0.00024545,2]
[340305612,1729015838345,-191.385,0.0002456,2]
[340305613,1729015838355,-300.0,0.0002459,2]
[340305614,1729015838365,-8294.44765588,0.00024591,2]
[340305615,1729015838374,-1149.16523146,0.0002461,2]
[340305616,1729015838492,-57.7272711,0.0002461,2]
[340305617,1729015838501,-617.07939823,0.0002462,2]
[340305621,1729015840096,-589.81310432,0.0002462,2]
[340305622,1729015840107,-191.385,0.00024625,2]
[340305623,1729015840118,-1206.89250255,0.0002463,2]
[340305624,1729015840128,-1206.89250255,0.0002464,2]
[340305625,1729015840137,-1206.89250255,0.0002465,2]
[340305626,1729015840148,-3124.53814774,0.0002465,2]
[340305627,1729015840158,-660.0,0.00024658,2]
[340305628,1729015840168,-191.385,0.00024691,2]
[340305629,1729015840177,-728.58509179,0.00024699,2]
[340305630,1729015840188,-160.29,0.00024699,3]
[340305631,1729015840198,-17450.24,0.00024699,10]
[340305632,1729015840208,-150.112233,0.000247,3]
[340305633,1729015840217,-150.112233,0.000247,3]
[340305634,1729015840229,-320.57,0.000247,3]
[340305635,1729015840240,-480.87,0.000247,3]
[340305636,1729015840250,-150.112233,0.000247,5]
[340305637,1729015840260,-150.112233,0.000247,2]
[340305638,1729015840270,-150.112233,0.000247,2]
[340305639,1729015840280,-27245.64,0.000247,10]
[340305640,1729015840290,-22704.7,0.000247,10]
[340305641,1729015840300,-18920.58,0.000247,10]
[340305642,1729015840310,-500.0,0.00024708,2]
[340305643,1729015840319,-500.0,0.00024708,2]
[340305644,1729015840329,-500.0,0.00024708,2]
[340305645,1729015840338,-516.6496138,0.00024708,2]
[340305646,1729015840348,-500.0,0.00024708,2]
[340305647,1729015840361,-500.0,0.00024708,2]
[340305648,1729015840372,-446.63206833,0.00024708,2]
[340305649,1729015840382,-500.0,0.00024708,2]
[340305650,1729015840393,-163.66480637,0.00024708,2]
[340305651,1729015840403,-500.0,0.00024708,2]
[340305652,1729015840412,-500.0,0.00024708,2]
[340305653,1729015840422,-500.0,0.00024708,2]
[340305654,1729015840431,-500.0,0.00024708,2]
[340305655,1729015840440,-500.0,0.00024708,2]
[340305656,1729015840455,-500.0,0.00024708,2]
[340305657,1729015840465,-500.0,0.00024708,2]
[340305658,1729015840476,-500.0,0.00024708,2]
[340305659,1729015840486,-500.0,0.00024708,2]
[340305660,1729015840496,-207.20142675,0.00024709,2]
[340305661,1729015840506,-244.71635005,0.00024709,2]
[340305662,1729015840516,-516.55352928,0.00024709,2]
[340305663,1729015840525,-220.18173088,0.00024709,2]
[340305664,1729015840534,-169.8676726,0.00024709,2]
[340305665,1729015840545,-500.0,0.00024709,2]
[340305666,1729015840557,-63909.1463052,0.0002471,3]
[340305667,1729015840566,-42886.3478375,0.0002471,3]
[340305668,1729015840575,-150.0,0.00024719,2]
[340305669,1729015840585,-500.0,0.00024719,2]
[340305670,1729015840595,-150.0,0.00024719,2]
[340305671,1729015840605,-500.0,0.00024719,2]
[340305672,1729015840615,-150.0,0.00024719,2]
[340305673,1729015840624,-500.0,0.00024719,2]
[340305674,1729015840633,-150.0,0.00024719,2]
[340305675,1729015840643,-150.0,0.00024719,2]
[340305676,1729015840652,-63909.1463052,0.0002472,3]
[340305677,1729015840662,-34461.27423221,0.0002472,3]
[340305678,1729015840865,-778.29745181,0.0002472,3]
[340305679,1729015840880,-966.41937026,0.0002472,3]
[340305680,1729015840892,-2006.6392084,0.0002472,3]
[340305681,1729015840904,-4673.71757482,0.0002472,3]
[340305682,1729015840919,-151.0,0.00024721,7]
[340305683,1729015840929,-153.184812,0.00024721,7]
[340305684,1729015840941,-151.0,0.00024721,7]
[340305685,1729015840955,-166.666666,0.00024722,2]
[340305686,1729015840965,-1000.01,0.0002474,2]
[340305687,1729015840975,-151.0,0.0002474,7]
[340305688,1729015840987,-151.0,0.0002474,7]
[340305689,1729015840997,-151.0,0.0002474,7]
[340305690,1729015841007,-151.0,0.0002474,7]
[340305691,1729015841017,-151.0,0.0002474,7]
[340305692,1729015841027,-33467.55324345,0.0002474,3]
[340305693,1729015841039,-30460.67586011,0.0002474,3]
[340305694,1729015841051,-1575.86391492,0.0002474,3]
[340305695,1729015841062,-3290.01473372,0.0002474,3]
[340305696,1729015841073,-535.5469514,0.0002474,3]
[340305714,1729015843174,-622.12000005,0.000246,2]
[340305717,1729015843207,-4744.11,0.000246,2]
[340305718,1729015843220,-291.2784889,0.000246,2]
[340305719,1729015843391,-725.96988784,0.000246,2]
[340305720,1729015843402,-1808.77320239,0.000246,2]
[340305733,1729015846073,-453.0,0.000246,2]
[340305734,1729015846088,-2.37024323,0.000246,2]
[340305735,1729015846100,-706.29,0.00024698,3]
[340305736,1729015846113,-16973.24,0.0002473,10]
[340305737,1729015846127,-122397.7842124,0.0002474,3]
[340305738,1729015846139,-62300.53162896,0.0002474,3]
[340305739,1729015895865,166.666666,0.00023308,2]
[340305740,1729015951271,2082.185073,0.00023683,2]
[340305741,1729016041500,24900.0,0.00023654,2]
[340305742,1729016048123,200.0,0.00024,2]
[340305743,1729016103152,164.0,5e-05,15]
[340305744,1729016103187,149.999999,5e-05,7]
[340305755,1729016477667,198.734459,0.00023656,2]
[340305756,1729016477995,198.734459,0.00023721,2]
[340305757,1729016478235,198.734459,0.00023786,2]
[340305758,1729016478472,198.734459,0.00023851,2]
[340305759,1729016479103,198.734459,0.00023916,2]
[340305760,1729016479160,198.734459,0.00023981,2]
[340305762,1729016483579,1388.123382,0.00023381,2]
[340305764,1729016526326,151.0,0.0002371,2]
[340305767,1729016666041,6005.3495372,0.00023406,2]
[340305771,1729016770837,166.666666,0.00023009,2]
[340305776,1729016921149,970.655783,0.00023,2]
[340305778,1729017010351,568.26556593,0.00023083,2]
[340305779,1729017012145,160.242105,0.00022149,2]
[340305855,1729017038369,-198.734459,0.00024046,2]
[340305857,1729017038381,-1388.123382,0.00024066,2]
[340305859,1729017038391,-198.734459,0.0002411,2]
[340305861,1729017038400,-7278.51758589,0.0002416,2]
[340305863,1729017038410,-198.734459,0.00024175,2]
[340305865,1729017038420,-470.1632783,0.00024237,2]
[340305867,1729017038429,-198.734459,0.0002424,2]
[340305869,1729017038439,-150.61215566,0.00024244,2]
[340305871,1729017038448,-300.0,0.00024303,2]
[340305873,1729017038458,-3051.45031291,0.00024303,2]
[340305879,1729017038521,-598.59645993,0.00024303,2]
[340305888,1729017038604,-12528.54772832,0.00024303,2]
[340305890,1729017038613,-300.0,0.00024304,2]
[340305892,1729017038623,-198.734459,0.00024305,2]
[340305894,1729017038632,-745.5857168,0.00024305,2]
[340305897,1729017038643,-198.734459,0.0002437,2]
[340305899,1729017038652,-198.734459,0.00024435,2]
[340305901,1729017038662,-150.0,0.00024456,2]